Workbook

Sheet Sheet1
B1: The Curvature Function
B2: for a Polar Curve
X3: circle usually misses point
B4: This graphing utility lets you investigate
B5: the curvature function
B9: and the osculating circle and radius of curvature
B10: for any desired polar function
D11: r = f(Q)
B12: on any interval from Q = a to Q = b.
A14: Enter the polar function in terms of Q: r = f(Q) = | F14: 1+cos(1*Q)
A17: Now enter the interval for Q:
C18: QMin = | D18: 0
C19: QMax = | D19: 6.28
A23: Click each item below for suggestions and investigations
B24: Item 1
B25: Item 2 | K25: Select a point Q0 on the curve: | O25: =N26 -> 5.652
B26: Item 3 | M26: 90 | N26: =D18+M26*(D19-D18)/100 -> 5.652
K28: The value of the function at Q0 = | O28: =N26 -> 5.652
L29: is r = f(Q0) = | N29: =Sheet2!M2 -> 1.801
A30: To access/download all the DIGMath Apps for Calculus
A31: Click this link: | C31: DIGMath for Calculus | K31: The value of the curvature there = | O31: =Sheet2!M19 -> 0.793 | Q31: The value of the radius of curvature at Q0 = | V31: =Radius -> 1.262
A33: Created by: Sheldon P. Gordon
A34: Farmingdale State College
A35: Development of this module was supported by the
A36: NSF's Division of Undergraduate Education
A37: under grants DUE-0310123 and DUE-0442160.

Sheet Sheet2
A1: Q | B1: f(Q) | C1: slope | D1: f"(Q) | E1: x | F1: y | G1: slope | H1: Curvature | I1: Curvature x | J1: curvature y | K1: Radius | L1: Q0 = | M1: =Q0 -> 5.652 | N1: =M1 -> 5.652 | O1: =M1 -> 5.652 | Q1: Osculating Circle
L2: r = | M2: =LOOKUP(M$1,A$2:A$504,B$2:B$504) -> 1.800620191 | N2: =0 -> 0 | O2: =M2 -> 1.800620191
A3: =Sheet1!D18 -> 0.00 | B3: =1+COS(1*Q) -> 2 | C3: =(B4-B3)/dQ -> -0.006267383006 | D3: -0.9999083462 | E3: =B3*COS(A3) -> 2 | F3: =B3*SIN(A3) -> 0 | G3: =(F4-F3)/(E4-E3) -> -106.3666412 | H3: =(B3^2+2*C3^2-B3*D3)/(B3^2+C3^2)^1.5 -> 0.7500 | I3: =H3*COS(A3) -> 0.7500 | J3: =H3*SIN(A3) -> 0.0000 | K3: =1/H3 -> 1.3334 | L3: x0 = | M3: =M2*COS(M$1) -> 1.45369222 | N3: y0 = | O3: =O2*SIN(O$1) -> -1.062549764 | Q3: radius = | R3: =1/k -> 1.261643267 | S3: = r0
A4: =A3+Sheet2!M$10 -> 0.01 | B4: 1.999921439 | C4: -0.01880116427 | D4: -0.999672678 | E4: =B4*COS(A4) -> 1.999764323 | F4: =B4*SIN(A4) -> 0.02506821904 | G4: =(F5-F4)/(E5-E4) -> -35.44718999 | H4: 0.7499 | I4: =H4*COS(A4) -> 0.7499 | J4: =H4*SIN(A4) -> 0.0094 | K4: =1/H4 -> 1.3334 | M4: 0 | O4: 0
A5: =A4+Sheet2!M$10 -> 0.03 | B5: 1.999685768 | C5: -0.03133199145 | D5: -0.9992799388 | E5: 1.999057401 | F5: 0.05012659167 | G5: -21.25828408 | H5: 0.7499 | I5: 0.7497 | J5: 0.0188 | K5: 1.3334 | Q5: for circle: dx = | S5: =(x0+r0)/100 -> 0.02715335487
A6: =A5+Sheet2!M$10 -> 0.04 | B6: 1.999293023 | C6: -0.04385789568 | D6: -0.9987301903 | E6: 1.997879569 | F6: 0.07516527674 | G6: -15.17373975 | H6: 0.7500 | I6: 0.7494 | J6: 0.0282 | K6: 1.3334 | L6: curvature = | M6: =M3 -> 1.45369222 | N6: =0 -> 0 | O6: =O3 -> -1.062549764 | R6: dxx = | S6: =(r0-x0)/100 -> -0.001920489524
A7: =A6+Sheet2!M$10 -> 0.05 | B7: 1.998743268 | C7: -0.05637690884 | D7: -0.998023519 | E7: 1.996231382 | F7: 0.1001744436 | G7: -11.79064692 | H7: 0.7500 | I7: 0.7491 | J7: 0.0376 | K7: 1.3333 | L7: x= | M7: 0 | N7: y= | O7: 0 | Q7: m = | R7: =LOOKUP(Q0,A3:A503,G3:G503) -> 0.7086392874
A8: =A7+Sheet2!M$10 -> 0.06 | B8: 1.998036587 | C8: -0.06888706393 | D8: -0.9971600358 | E8: 1.994113616 | F8: 0.1251442775 | G8: -9.635484007 | H8: 0.7501 | I8: 0.7487 | J8: 0.0470 | K8: 1.3331
A9: =A8+Sheet2!M$10 -> 0.08 | B9: 1.997173092 | C9: -0.08138639531 | D9: -0.9961398763 | E9: 1.991527269 | F9: 0.1500649844 | G9: -8.141511382 | H9: 0.7502 | I9: 0.7481 | J9: 0.0564 | K9: 1.3329 | Q9: a0 = | R9: =x0-m*r0/SQRT(1+m^2) -> 0.7242308285 | S9: aa = | T9: =x0-r0*COS(ATAN(-1/m)) -> 0.7242308285
A10: =A9+Sheet2!M$10 -> 0.09 | B10: 1.99615292 | C10: -0.09387293907 | D10: -0.994963201 | E10: 1.988473559 | F10: 0.1749267969 | G10: -7.044250078 | H10: 0.7504 | I10: 0.7475 | J10: 0.0658 | K10: 1.3326 | L10: delta Q = | M10: =(Sheet1!D19-Sheet1!D18)/501 -> 0.01253493014 | Q10: b0 = | R10: =y0-r0/SQRT(1+m^2) -> -2.091932984 | S10: bb = | T10: =y0-r0*SIN(ATAN(-1/m)) -> -0.0331665447
A11: =A10+Sheet2!M$10 -> 0.10 | B11: 1.994976229 | C11: -0.1063447333 | D11: -0.9936301947 | E11: 1.984953925 | F11: 0.1997199786 | G11: -6.20368139 | H11: 0.7506 | I11: 0.7468 | J11: 0.0751 | K11: 1.3323
A12: =A11+Sheet2!M$10 -> 0.11 | B12: 1.993643205 | C12: -0.1187998184 | D12: -0.9921410667 | E12: 1.980970024 | F12: 0.2244348301 | G12: -5.538741474 | H12: 0.7508 | I12: 0.7460 | J12: 0.0845 | K12: 1.3320 | L12: Tracing point | N12: polar curve | Q12: x | R12: y | S12: - y
A13: =A12+Sheet2!M$10 -> 0.13 | B13: 1.992154058 | C13: -0.1312362373 | D13: -0.9904960512 | E13: 1.976523732 | F13: 0.2490616937 | G13: -4.9992476 | H13: 0.7510 | I13: 0.7451 | J13: 0.0939 | K13: 1.3315 | Q13: =x0 -> 1.45369222 | R13: =IF(T13>=0,b0+SQRT(r0^2-(Q13-a0)^2),b0+SQRT(-T13)) -> -1.369799107 | S13: =2*b0-R13 -> -2.81406686 | T13: =r0^2-(Q13-a0)^2 -> -0.5214773357
A14: =A13+Sheet2!M$10 -> 0.14 | B14: 1.990509021 | C14: -0.1436520361 | D14: -0.9886954066 | E14: 1.97161714 | F14: 0.2735909586 | G14: -4.552471578 | H14: 0.7513 | I14: 0.7441 | J14: 0.1033 | K14: 1.3311 | L14: 0 | M14: 0 | Q14: =Q13-dr -> 1.426538865 | R14: -1.426148184 | S14: -2.757717783 | T14: -0.443269399
A15: =A14+Sheet2!M$10 -> 0.15 | B15: 1.988708352 | C15: -0.156045264 | D15: -0.9867394157 | E15: 1.966252558 | F15: 0.2980130661 | G15: -4.176157939 | H15: 0.7516 | I15: 0.7431 | J15: 0.1126 | K15: 1.3305 | L15: =M3 -> 1.45369222 | M15: =O3 -> -1.062549764 | Q15: 1.39938551 | R15: -1.486510758 | S15: -2.69735521 | T15: -0.3665360716
A16: =A15+Sheet2!M$10 -> 0.16 | B16: 1.986752336 | C16: -0.1684139736 | D16: -0.9846283859 | E16: 1.960432508 | F16: 0.3223185147 | G16: -3.854645147 | H16: 0.7519 | I16: 0.7419 | J16: 0.1220 | K16: 1.3300 | Q16: 1.372232155 | R16: -1.552231813 | S16: -2.631634154 | T16: -0.2912773536
A17: =A16+Sheet2!M$10 -> 0.18 | B17: 1.984641278 | C17: -0.1807562217 | D17: -0.982362649 | E17: 1.954159726 | F17: 0.3464978652 | G17: -3.576591825 | H17: 0.7523 | I17: 0.7407 | J17: 0.1313 | K17: 1.3293 | Q17: 1.3450788 | R17: -1.625571273 | S17: -2.558294694 | T17: -0.217493245
A18: =A17+Sheet2!M$10 -> 0.19 | B18: 1.982375512 | C18: -0.1930700688 | D18: -0.9799425608 | E18: 1.947437158 | F18: 0.3705417454 | G18: -3.333583151 | H18: 0.7526 | I18: 0.7394 | J18: 0.1407 | K18: 1.3287 | L18: Tracing point | N18: curvature fn | Q18: 1.317925445 | R18: -1.710903135 | S18: -2.472962832 | T18: -0.1451837457
A19: =A18+Sheet2!M$10 -> 0.20 | B19: 1.979955392 | C19: -0.2053535804 | D19: -0.9773685018 | E19: 1.940267962 | F19: 0.3944408556 | G19: -3.119244024 | H19: 0.7531 | I19: 0.7380 | J19: 0.1500 | K19: 1.3279 | L19: k = | M19: =LOOKUP(M$1,A$3:A$504,H$3:H$504) -> 0.792617078 | N19: =0 -> 0 | O19: =M19 -> 0.792617078 | Q19: 1.29077209 | R19: -1.819263118 | S19: -2.364602849 | T19: -0.07434885573
A20: =A19+Sheet2!M$10 -> 0.21 | B20: 1.977381299 | C20: -0.2176048263 | D20: -0.9746408762 | E20: 1.932655503 | F20: 0.4181859729 | G20: -2.92865628 | H20: 0.7535 | I20: 0.7365 | J20: 0.1594 | K20: 1.3271 | L20: x = | M20: =M19*COS(M$1) -> 0.6399024545 | N20: y = | O20: =O19*SIN(O$1) -> -0.4677250059 | Q20: 1.263618736 | R20: -2.021303138 | S20: -2.16256283 | T20: -0.004988575153
A21: =A20+Sheet2!M$10 -> 0.23 | B21: 1.974653638 | C21: -0.2298218816 | D21: -0.9717601127 | E21: 1.924603352 | F21: 0.4417679568 | G21: -2.757964921 | H21: 0.7540 | I21: 0.7349 | J21: 0.1687 | K21: 1.3263 | M21: 0 | O21: 0 | Q21: 1.236465381 | R21: -1.841140049 | S21: -2.342725918 | T21: 0.06289709606
A22: =A21+Sheet2!M$10 -> 0.24 | B22: 1.971772837 | C22: -0.2420028267 | D22: -0.9687266639 | E22: 1.916115283 | F22: 0.4651777534 | G22: -2.604105507 | H22: 0.7545 | I22: 0.7332 | J22: 0.1780 | K22: 1.3254 | Q22: 1.209312026 | R22: -1.732338548 | S22: -2.451527419 | T22: 0.1293081579
A23: =A22+Sheet2!M$10 -> 0.25 | B23: 1.968739348 | C23: =(B24-B23)/dQ -> -0.2541457477 | D23: -0.9655410064 | E23: 1.907195273 | F23: 0.4884064005 | G23: -2.464611335 | H23: 0.7550 | I23: 0.7314 | J23: 0.1873 | K23: 1.3245 | Q23: 1.182158671 | R23: -1.651201081 | S23: -2.532664887 | T23: 0.1942446104
A24: =A23+Sheet2!M$10 -> 0.26 | B24: 1.965553649 | C24: -0.2662487368 | D24: -0.9622036408 | E24: 1.897847498 | F24: 0.5114450323 | G24: -2.337474422 | H24: 0.7556 | I24: 0.7296 | J24: 0.1966 | K24: 1.3235 | L24: Tracing Point -- Radius of Curvature | Q24: 1.155005316 | R24: -1.584285021 | S24: -2.599580946 | T24: 0.2577064535
A25: =A24+Sheet2!M$10 -> 0.28 | B25: 1.96221624 | C25: -0.2783098922 | D25: -0.9587150914 | E25: 1.888076332 | F25: 0.5342848841 | G25: -2.221043568 | H25: 0.7562 | I25: 0.7276 | J25: 0.2059 | K25: 1.3224 | Q25: 1.127851961 | R25: -1.526518368 | S25: -2.657347599 | T25: 0.3196936873
A26: =A25+Sheet2!M$10 -> 0.29 | B26: 1.958727645 | C26: -0.2903273189 | D26: -0.9550759064 | E26: 1.877886341 | F26: 0.5569172967 | G26: -2.113948438 | H26: 0.7568 | I26: 0.7256 | J26: 0.2152 | K26: 1.3213 | L26: 1/k = | M26: =LOOKUP(M$1,A$3:A$502,K$3:K$502) -> 1.261643267 | Q26: 1.100698606 | R26: -1.475324265 | S26: -2.708541702 | T26: 0.3802063117
A27: =A26+Sheet2!M$10 -> 0.30 | B27: 1.955088412 | C27: -0.3022991287 | D27: -0.9512866575 | E27: 1.867282287 | F27: 0.5793337213 | G27: -2.015042242 | H27: 0.7575 | I27: 0.7235 | J27: 0.2245 | K27: 1.3201 | Q27: 1.073545251 | R27: -1.429177881 | S27: -2.754688087 | T27: 0.4392443267
A28: =A27+Sheet2!M$10 -> 0.31 | B28: 1.951299114 | C28: -0.3142234405 | D28: -0.9473479402 | E28: 1.856269117 | F28: 0.6015257236 | G28: -1.923357896 | H28: 0.7582 | I28: 0.7213 | J28: 0.2337 | K28: 1.3189 | M28: =Q0 -> 5.652 | N28: 0 | Q28: 1.046391897 | R28: -1.387087091 | S28: -2.796778876 | T28: 0.4968077324
A29: =A28+Sheet2!M$10 -> 0.33 | B29: 1.947360345 | C29: -0.3260983807 | D29: -0.9432603733 | E29: 1.844851967 | F29: 0.6234849885 | G29: -1.838074111 | H29: 0.7589 | I29: 0.7190 | J29: 0.2430 | K29: 1.3177 | M29: =Q0 -> 5.652 | N29: =M26 -> 1.261643267 | Q29: 1.019238542 | R29: -1.34836286 | S29: -2.835503107 | T29: 0.5528965287
A30: =A29+Sheet2!M$10 -> 0.34 | B30: 1.943272724 | C30: -0.3379220836 | D30: -0.9390245991 | E30: 1.833036156 | F30: 0.6452033244 | G30: -1.758488885 | H30: 0.7597 | I30: 0.7166 | J30: 0.2522 | K30: 1.3164 | Q30: 0.9920851869 | R30: -1.312503246 | S30: -2.871362721 | T30: 0.6075107157
A31: =A30+Sheet2!M$10 -> 0.35 | B31: 1.939036894 | C31: -0.3496926914 | D31: -0.934641283 | E31: 1.820827184 | F31: 0.6666726672 | G31: -1.683998566 | H31: 0.7605 | I31: 0.7141 | J31: 0.2615 | K31: 1.3150 | Q31: 0.964931832 | R31: -1.279129014 | S31: -2.904736953 | T31: 0.6606502933
A32: =A31+Sheet2!M$10 -> 0.36 | B32: 1.934653521 | C32: -0.3614083545 | D32: -0.9301111139 | E32: 1.808230725 | F32: 0.6878850849 | G32: -1.614081182 | H32: 0.7613 | I32: 0.7115 | J32: 0.2707 | K32: 1.3136 | Q32: 0.9377784771 | R32: -1.24794527 | S32: -2.935920698 | T32: 0.7123152615
A33: =A32+Sheet2!M$10 -> 0.38 | B33: 1.930123293 | C33: -0.3730672324 | D33: -0.9254348034 | E33: 1.795252632 | F33: 0.7088327814 | G33: -1.548283045 | H33: 0.7621 | I33: 0.7089 | J33: 0.2799 | K33: 1.3121 | Q33: 0.9106251223 | R33: -1.218717306 | S33: -2.965148662 | T33: 0.7625056204
A34: =A33+Sheet2!M$10 -> 0.39 | B34: 1.925446921 | C34: -0.384667493 | D34: -0.9206130864 | E34: 1.781898924 | F34: 0.7295081007 | G34: -1.486207909 | H34: 0.7630 | I34: 0.7061 | J34: 0.2891 | K34: 1.3106 | Q34: 0.8834717674 | R34: -1.1912547 | S34: -2.992611267 | T34: 0.8112213699
A35: =A34+Sheet2!M$10 -> 0.40 | B35: 1.920625141 | C35: -0.3962073137 | D35: -0.9156467204 | E35: 1.76817579 | F35: 0.7499035306 | G35: -1.427508126 | H35: 0.7639 | I35: 0.7033 | J35: 0.2983 | K35: 1.3090 | Q35: 0.8563184125 | R35: -1.165400464 | S35: -3.018465503 | T35: 0.8584625101
A36: =A35+Sheet2!M$10 -> 0.41 | B36: 1.91565871 | C36: -0.4076848814 | D36: -0.9105364858 | E36: 1.754089582 | F36: 0.7700117071 | G36: -1.371877391 | H36: 0.7649 | I36: 0.7004 | J36: 0.3074 | K36: 1.3074 | Q36: 0.8291650577 | R36: -1.141023398 | S36: -3.04284257 | T36: 0.9042290409
A37: =A36+Sheet2!M$10 -> 0.43 | B37: 1.910548408 | C37: -0.4190983926 | D37: -0.9052831855 | E37: 1.739646812 | F37: 0.7898254174 | G37: -1.319044745 | H37: 0.7659 | I37: 0.6973 | J37: 0.3166 | K37: 1.3057 | Q37: 0.8020117028 | R37: -1.118012575 | S37: -3.065853392 | T37: 0.9485209623
A38: =A37+Sheet2!M$10 -> 0.44 | B38: 1.905295039 | C38: -0.4304460541 | D38: -0.899887645 | E38: 1.724854147 | F38: 0.8093376042 | G38: -1.268769588 | H38: 0.7669 | I38: 0.6942 | J38: 0.3258 | K38: 1.3040 | Q38: 0.7748583479 | R38: -1.096273266 | S38: -3.087592702 | T38: 0.9913382744
A39: =A38+Sheet2!M$10 -> 0.45 | B39: 1.899899428 | C39: -0.4417260829 | D39: -0.8943507119 | E39: 1.709718408 | F39: 0.8285413692 | G39: -1.220837523 | H39: 0.7679 | I39: 0.6910 | J39: 0.3349 | K39: 1.3022 | Q39: 0.7477049931 | R39: -1.075723863 | S39: -3.108142104 | T39: 1.032680977
A40: =A39+Sheet2!M$10 -> 0.46 | B40: 1.894362422 | C40: -0.4529367066 | D40: -0.8886732562 | E40: 1.694246565 | F40: 0.8474299763 | G40: -1.175056849 | H40: 0.7690 | I40: 0.6878 | J40: 0.3440 | K40: 1.3004 | Q40: 0.7205516382 | R40: -1.056293534 | S40: -3.127572434 | T40: 1.07254907
A41: =A40+Sheet2!M$10 -> 0.48 | B41: 1.888684892 | C41: -0.4640761638 | D41: -0.8828561701 | E41: 1.67844573 | F41: 0.8659968552 | G41: -1.131255615 | H41: 0.7701 | I41: 0.6844 | J41: 0.3531 | K41: 1.2985 | Q41: 0.6933982833 | R41: -1.037920387 | S41: -3.145945581 | T41: 1.110942554
A42: =A41+Sheet2!M$10 -> 0.49 | B42: 1.88286773 | C42: -0.4751427042 | D42: -0.8769003675 | E42: 1.662323159 | F42: 0.8842356046 | G42: -1.089279109 | H42: 0.7713 | I42: 0.6809 | J42: 0.3622 | K42: 1.2966 | Q42: 0.6662449285 | R42: -1.020550032 | S42: -3.163315935 | T42: 1.147861429
A43: =A42+Sheet2!M$10 -> 0.50 | B43: 1.876911849 | C43: =(B44-B43)/dQ -> -0.486134589 | D43: -0.8708067842 | E43: 1.645886241 | F43: 0.9021399956 | G43: -1.048987729 | H43: 0.7724 | I43: 0.6774 | J43: 0.3713 | K43: 1.2946 | Q43: 0.6390915736 | R43: -1.00413443 | S43: -3.179731538 | T43: 1.183305694
A44: =A43+Sheet2!M$10 -> 0.51 | B44: 1.870818186 | C44: -0.4970500912 | D44: -0.8645763776 | E44: 1.6291425 | F44: 0.9197039746 | G44: -1.010255156 | H44: 0.7737 | I44: 0.6737 | J44: 0.3803 | K44: 1.2925 | Q44: 0.6119382187 | R44: -0.9886309624 | S44: -3.195235005 | T44: 1.21727535
A45: =A44+Sheet2!M$10 -> 0.53 | B45: 1.864587698 | C45: -0.5078874957 | D45: -0.8582101267 | E45: 1.612099586 | F45: 0.9369216664 | G45: -0.9729667823 | H45: 0.7749 | I45: 0.6700 | J45: 0.3894 | K45: 1.2905 | Q45: 0.5847848639 | R45: =IF(T45>=0,b0+SQRT(r0^2-(Q45-a0)^2),b0+SQRT(-T45)) -> -0.9740016813 | S45: =2*b0-R45 -> -3.209864286 | T45: =r0^2-(Q45-a0)^2 -> 1.249770397
A46: =A45+Sheet2!M$10 -> 0.54 | B46: 1.858221364 | C46: -0.5186450997 | D46: -0.8517090317 | E46: 1.594765273 | F46: 0.9537873768 | G46: -0.9370183641 | H46: 0.7762 | I46: 0.6662 | J46: 0.3984 | K46: 1.2883 | Q46: =Q45-dr -> 0.557631509 | R46: -0.9602126852 | S46: -3.223653282 | T46: 1.280790834
A47: =A46+Sheet2!M$10 -> 0.55 | B47: 1.851720184 | C47: -0.5293212129 | D47: -0.8450741142 | E47: 1.577147455 | F47: 0.9702955958 | G47: -0.9023148479 | H47: 0.7775 | I47: 0.6622 | J47: 0.4074 | K47: 1.2861 | Q47: 0.5304781541 | R47: -0.9472336075 | S47: -3.23663236 | T47: 1.310336662
A48: =A47+Sheet2!M$10 -> 0.56 | B48: 1.845085179 | C48: -0.5399141579 | D48: -0.8383064165 | E48: 1.55925414 | F48: 0.9864410001 | G48: -0.8687693553 | H48: 0.7789 | I48: 0.6582 | J48: 0.4164 | K48: 1.2839 | Q48: 0.5033247992 | R48: -0.9350371888 | S48: -3.248828779 | T48: 1.33840788
A49: =A48+Sheet2!M$10 -> 0.58 | B49: 1.838317393 | C49: -0.5504222703 | D49: -0.8314070022 | E49: 1.541093445 | F49: 1.002218455 | G49: -0.8363022978 | H49: 0.7803 | I49: 0.6541 | J49: 0.4254 | K49: 1.2816 | Q49: 0.4761714444 | R49: -0.9235989179 | S49: -3.260267049 | T49: 1.365004489
A50: =A49+Sheet2!M$10 -> 0.59 | B50: 1.831417888 | C50: -0.5608438989 | D50: -0.8243769551 | E50: 1.522673594 | F50: 1.017623019 | G50: -0.8048406024 | H50: 0.7817 | I50: 0.6499 | J50: 0.4344 | K50: 1.2792 | Q50: 0.4490180895 | R50: -0.9128967293 | S50: -3.270969238 | T50: 1.390126489
A51: =A50+Sheet2!M$10 -> 0.60 | B51: 1.824387749 | C51: -0.5711774065 | D51: -0.81721738 | E51: 1.504002911 | F51: 1.032649943 | G51: -0.7743170333 | H51: 0.7832 | I51: 0.6456 | J51: 0.4433 | K51: 1.2768 | Q51: 0.4218647346 | R51: -0.9029107469 | S51: -3.28095522 | T51: 1.413773879
A52: =A51+Sheet2!M$10 -> 0.61 | B52: 1.81722808 | C52: -0.5814211693 | D52: -0.8099294017 | E52: 1.485089816 | F52: 1.047294674 | G52: -0.7446695954 | H52: 0.7847 | I52: 0.6413 | J52: 0.4522 | K52: 1.2744 | Q52: 0.3947113798 | R52: -0.8936230653 | S52: -3.290242902 | T52: 1.43594666
A53: =A52+Sheet2!M$10 -> 0.63 | B53: 1.809940007 | C53: -0.5915735777 | D53: -0.8025141653 | E53: 1.465942821 | F53: 1.061552859 | G53: -0.7158410077 | H53: 0.7862 | I53: 0.6368 | J53: 0.4611 | K53: 1.2719 | Q53: 0.3675580249 | R53: -0.8850175632 | S53: -3.298848404 | T53: 1.456644832
A54: =A53+Sheet2!M$10 -> 0.64 | B54: 1.802524673 | C54: -0.6016330367 | D54: -0.7949728359 | E54: 1.446570524 | F54: 1.075420344 | G54: -0.6877782386 | H54: 0.7878 | I54: 0.6322 | J54: 0.4700 | K54: 1.2693 | Q54: 0.34040467 | R54: -0.8770797438 | S54: -3.306786224 | T54: 1.475868394
A55: =A54+Sheet2!M$10 -> 0.65 | B55: 1.794983245 | C55: -0.6115979657 | D55: -0.7873065985 | E55: 1.426981605 | F55: 1.088893176 | G55: -0.660432093 | H55: 0.7894 | I55: 0.6276 | J55: 0.4789 | K55: 1.2667 | Q55: 0.3132513152 | R55: -0.8697965971 | S55: -3.31406937 | T55: 1.493617347
A56: =A55+Sheet2!M$10 -> 0.66 | B56: 1.787316907 | C56: -0.6214667989 | D56: -0.7795166576 | E56: 1.40718482 | F56: 1.101967608 | G56: -0.6337568463 | H56: 0.7911 | I56: 0.6228 | J56: 0.4877 | K56: 1.2641 | Q56: 0.2860979603 | R56: -0.8631564821 | S56: -3.320709485 | T56: 1.509891691
A57: =A56+Sheet2!M$10 -> 0.68 | B57: 1.779526864 | C57: -0.6312379857 | D57: -0.7716042372 | E57: 1.387188997 | F57: 1.114640098 | G57: -0.6077099169 | H57: 0.7928 | I57: 0.6180 | J57: 0.4966 | K57: 1.2614 | Q57: 0.2589446054 | R57: -0.8571490248 | S57: -3.326716943 | T57: 1.524691425
A58: =A57+Sheet2!M$10 -> 0.69 | B58: 1.77161434 | C58: -0.6409099909 | D58: -0.7635705804 | E58: 1.367003031 | F58: 1.12690731 | G58: -0.582251575 | H58: 0.7945 | I58: 0.6131 | J58: 0.5054 | K58: 1.2586 | Q58: 0.2317912506 | R58: -0.8517650314 | S58: -3.332100936 | T58: 1.53801655
A59: =A58+Sheet2!M$10 -> 0.70 | B59: 1.763580578 | C59: -0.6504812948 | D59: -0.7554169496 | E59: 1.346635878 | F59: 1.138766116 | G59: -0.5573446812 | H59: 0.7963 | I59: 0.6080 | J59: 0.5142 | K59: 1.2558 | Q59: 0.2046378957 | R59: -0.8469964128 | S59: -3.336869554 | T59: 1.549867065
A60: =A59+Sheet2!M$10 -> 0.71 | B60: 1.755426841 | C60: -0.6599503935 | D60: -0.7471446258 | E60: 1.326096553 | F60: 1.1502136 | G60: -0.5329544518 | H60: 0.7981 | I60: 0.6029 | J60: 0.5229 | K60: 1.2530 | Q60: 0.1774845408 | R60: -0.8428361213 | S60: -3.341029846 | T60: 1.560242972
A61: =A60+Sheet2!M$10 -> 0.73 | B61: 1.747154409 | C61: -0.6693157992 | D61: -0.7387549089 | E61: 1.305394119 | F61: 1.161247054 | G61: -0.509048248 | H61: 0.8000 | I61: 0.5977 | J61: 0.5317 | K61: 1.2501 | Q61: 0.150331186 | R61: -0.8392780957 | S61: -3.344587872 | T61: 1.569144268
A62: =A61+Sheet2!M$10 -> 0.74 | B62: 1.738764582 | C62: -0.6785760404 | D62: -0.730249117 | E62: 1.28453769 | F62: 1.171863983 | G62: -0.4855953854 | H62: 0.8019 | I62: 0.5924 | J62: 0.5404 | K62: 1.2471 | Q62: 0.1231778311 | R62: -0.8363172161 | S62: -3.347548751 | T62: 1.576570956
A63: =A62+Sheet2!M$10 -> 0.75 | B63: 1.730258679 | C63: =(B64-B63)/dQ -> -0.687729662 | D63: -0.7216285866 | E63: 1.263536417 | F63: 1.182062105 | G63: -0.4625669623 | H63: 0.8038 | I63: 0.5870 | J63: 0.5491 | K63: 1.2441 | Q63: 0.09602447621 | R63: -0.8339492661 | S63: -3.349916701 | T63: 1.582523034
A64: =A63+Sheet2!M$10 -> 0.76 | B64: 1.721638035 | C64: -0.696775226 | D64: -0.7128946722 | E64: 1.24239949 | F64: 1.191839349 | G64: -0.4399357039 | H64: 0.8058 | I64: 0.5815 | J64: 0.5578 | K64: 1.2411 | Q64: 0.06887112135 | R64: -0.832170902 | S64: -3.351695065 | T64: 1.587000502
A65: =A64+Sheet2!M$10 -> 0.78 | B65: 1.712904007 | C65: -0.7057113109 | D65: -0.704048746 | E65: 1.221136129 | F65: 1.20119386 | G65: -0.4176758209 | H65: 0.8078 | I65: 0.5759 | J65: 0.5665 | K65: 1.2380 | Q65: 0.04171776648 | R65: -0.8309796294 | S65: -3.352886338 | T65: 1.590003362
A66: =A65+Sheet2!M$10 -> 0.79 | B66: 1.704057965 | C66: -0.7145365127 | D66: -0.6950921981 | E66: 1.199755582 | F66: 1.210123998 | G66: -0.3957628806 | H66: 0.8098 | I66: 0.5702 | J66: 0.5751 | K66: 1.2348 | Q66: 0.01456441161 | R66: -0.830373785 | S66: -3.353492182 | T66: 1.591531612
A67: =A66+Sheet2!M$10 -> 0.80 | B67: =1+COS(1*Q) -> 1.695101299 | C67: -0.7232494449 | D67: -0.6860264355 | E67: 1.178267116 | F67: 1.218628335 | G67: -0.3741736896 | H67: =(B67^2+2*C67^2-B67*D67)/(B67^2+C67^2)^1.5 -> 0.8120 | I67: 0.5644 | J67: 0.5837 | K67: 1.2316 | Q67: -0.01258894326 | R67: -0.8303525256 | S67: -3.353513442 | T67: 1.591585252
A68: =A67+Sheet2!M$10 -> 0.81 | B68: 1.686035418 | C68: -0.7318487383 | D68: -0.6768528828 | E68: =B68*COS(A68) -> 1.156680013 | F68: =B68*SIN(A68) -> 1.226705661 | G68: =(F69-F68)/(E69-E68) -> -0.3528861865 | H68: 0.8141 | I68: =H68*COS(A68) -> 0.5585 | J68: =H68*SIN(A68) -> 0.5923 | K68: =1/H68 -> 1.2283 | Q68: -0.03974229813 | R68: -0.8309158214 | S68: -3.352950146 | T68: 1.590164283
A69: =A68+Sheet2!M$10 -> 0.83 | B69: 1.676861745 | C69: -0.7403330419 | D69: -0.6675729813 | E69: 1.135003568 | F69: 1.234354979 | G69: -0.3318793433 | H69: 0.8163 | I69: 0.5525 | J69: 0.6009 | K69: 1.2250 | Q69: -0.066895653 | R69: -0.8320644567 | S69: -3.351801511 | T69: 1.587268705
A70: =A69+Sheet2!M$10 -> 0.84 | B70: 1.667581722 | C70: -0.7487010226 | D70: -0.6581881892 | E70: 1.113247079 | F70: 1.241575508 | G70: -0.3111330749 | H70: 0.8185 | I70: 0.5464 | J70: 0.6094 | K70: 1.2217 | Q70: -0.09404900787 | R70: -0.8338000345 | S70: -3.350065933 | T70: 1.582898518
A71: =A70+Sheet2!M$10 -> 0.85 | B71: 1.658196807 | C71: -0.7569513656 | D71: -0.648699981 | E71: 1.091419845 | F71: 1.248366683 | G71: -0.2906281559 | H71: 0.8208 | I71: 0.5403 | J71: 0.6180 | K71: 1.2183 | Q71: -0.1212023627 | R71: -0.8361249884 | S71: -3.347740979 | T71: 1.577053721
A72: =A71+Sheet2!M$10 -> 0.86 | B72: 1.648708475 | C72: -0.7650827745 | D72: -0.6391098474 | E72: 1.06953116 | F72: 1.254728151 | G72: -0.2703461431 | H72: 0.8232 | I72: 0.5340 | J72: 0.6264 | K72: 1.2148 | Q72: -0.1483557176 | R72: -0.8390425995 | S72: -3.344823368 | T72: 1.569734315
A73: =A72+Sheet2!M$10 -> 0.88 | B73: 1.639118216 | C73: -0.7730939718 | D73: -0.6294192954 | E73: 1.04759031 | F73: 1.260659775 | G73: -0.2502693044 | H73: 0.8255 | I73: 0.5276 | J73: 0.6349 | K73: 1.2113 | Q73: -0.1755090725 | R73: -0.8425570197 | S73: -3.341308948 | T73: 1.560940299
A74: =A73+Sheet2!M$10 -> 0.89 | B74: 1.629427537 | C74: -0.7809836987 | D74: -0.6196298474 | E74: 1.025606561 | F74: 1.266161633 | G74: -0.2303805522 | H74: 0.8280 | I74: 0.5211 | J74: 0.6434 | K74: 1.2078 | Q74: -0.2026624273 | R74: -0.8466733022 | S74: -3.337192665 | T74: 1.550671674
A75: =A74+Sheet2!M$10 -> 0.90 | B75: 1.619637961 | C75: -0.7887507155 | D75: -0.6097430418 | E75: 1.003589163 | F75: 1.271234013 | G75: -0.2106633812 | H75: 0.8304 | I75: 0.5146 | J75: 0.6518 | K75: 1.2042 | Q75: -0.2298157822 | R75: -0.851397438 | S75: -3.332468529 | T75: 1.53892844
A76: =A75+Sheet2!M$10 -> 0.92 | B76: 1.609751026 | C76: -0.796393802 | D76: -0.5997604318 | E76: 0.9815473389 | F76: 1.275877418 | G76: -0.1911018106 | H76: 0.8329 | I76: 0.5079 | J76: 0.6602 | K76: 1.2006 | Q76: -0.2569691371 | R76: -0.8567364016 | S76: -3.327129566 | T76: 1.525710596
A77: =A76+Sheet2!M$10 -> 0.93 | B77: 1.599768285 | C77: -0.8039117571 | D77: -0.5896835861 | E77: 0.9594902806 | F77: 1.280092562 | G77: -0.1716803293 | H77: 0.8355 | I77: 0.5011 | J77: 0.6686 | K77: 1.1969 | Q77: -0.2841224919 | R77: =IF(T77>=0,b0+SQRT(r0^2-(Q77-a0)^2),b0+SQRT(-T77)) -> -0.8626982041 | S77: =2*b0-R77 -> -3.321167763 | T77: =r0^2-(Q77-a0)^2 -> 1.511018143
A78: =A77+Sheet2!M$10 -> 0.94 | B78: 1.589691307 | C78: -0.8113033996 | D78: -0.5795140878 | E78: 0.9374271451 | F78: 1.283880368 | G78: -0.1523838443 | H78: 0.8381 | I78: 0.4942 | J78: 0.6769 | K78: 1.1931 | Q78: =Q77-dr -> -0.3112758468 | R78: -0.8692919567 | S78: -3.314574011 | T78: 1.494851081
A79: =A78+Sheet2!M$10 -> 0.95 | B79: 1.579521676 | C79: -0.8185675683 | D79: -0.5692535348 | E79: 0.9153670486 | F79: 1.287241971 | G79: -0.1331976322 | H79: 0.8408 | I79: 0.4873 | J79: 0.6852 | K79: 1.1893 | Q79: -0.3384292017 | R79: -0.8765279445 | S79: -3.307338023 | T79: 1.477209409
A80: =A79+Sheet2!M$10 -> 0.97 | B80: 1.569260989 | C80: -0.8257031215 | D80: -0.5589035394 | E80: 0.8933190616 | F80: 1.29017871 | G80: -0.1141072927 | H80: 0.8435 | I80: 0.4802 | J80: 0.6935 | K80: 1.1855 | Q80: -0.3655825566 | R80: -0.8844177133 | S80: -3.299448254 | T80: 1.458093128
A81: =A80+Sheet2!M$10 -> 0.98 | B81: 1.558910858 | C81: -0.8327089384 | D81: -0.5484657277 | E81: 0.8712922043 | F81: 1.292692135 | G81: -0.09509870386 | H81: 0.8463 | I81: 0.4730 | J81: 0.7018 | K81: 1.1816 | Q81: -0.3927359114 | R81: -0.8929741697 | S81: -3.290891798 | T81: 1.437502238
A82: =A81+Sheet2!M$10 -> 0.99 | B82: 1.548472909 | C82: -0.8395839179 | D82: -0.5379417398 | E82: 0.8492954414 | F82: 1.294783999 | G82: -0.07615797983 | H82: 0.8491 | I82: 0.4657 | J82: 0.7100 | K82: 1.1777 | Q82: -0.4198892663 | R82: -0.9022116979 | S82: -3.281654269 | T82: 1.415436738
A83: =A82+Sheet2!M$10 -> 1.00 | B83: 1.537948783 | C83: =(B84-B83)/dQ -> -0.8463269801 | D83: -0.5273332291 | E83: 0.8273376771 | F83: 1.296456258 | G83: -0.05727142936 | H83: 0.8520 | I83: 0.4583 | J83: 0.7182 | K83: 1.1737 | Q83: -0.4470426212 | R83: -0.9121462959 | S83: -3.271719671 | T83: 1.391896629
A84: =A83+Sheet2!M$10 -> 1.02 | B84: 1.527340134 | C84: -0.8529370653 | D84: -0.5166418626 | E84: 0.8054277507 | F84: 1.297711071 | G84: -0.03842551589 | H84: 0.8549 | I84: 0.4508 | J84: 0.7264 | K84: 1.1697 | Q84: -0.474195976 | R84: -0.9227957334 | S84: -3.261070234 | T84: 1.36688191
A85: =A84+Sheet2!M$10 -> 1.03 | B85: 1.516648627 | C85: -0.8594131349 | D85: -0.50586932 | E85: 0.7835744315 | F85: 1.298550796 | G85: -0.01960681845 | H85: 0.8579 | I85: 0.4432 | J85: 0.7345 | K85: 1.1656 | Q85: -0.5013493309 | R85: -0.9341797361 | S85: -3.249686231 | T85: 1.340392582
A86: =A85+Sheet2!M$10 -> 1.04 | B86: 1.505875944 | C86: -0.8657541715 | D86: -0.495017294 | E86: 0.7617864142 | F86: 1.298977989 | G86: -0.0008019932699 | H86: 0.8610 | I86: 0.4355 | J86: 0.7427 | K86: 1.1615 | Q86: -0.5285026858 | R86: -0.9463202023 | S86: -3.237545765 | T86: 1.312428645
A87: =A86+Sheet2!M$10 -> 1.05 | B87: 1.495023776 | C87: -0.8719591787 | D87: -0.4840874898 | E87: 0.7400723142 | F87: 1.298995404 | G87: 0.01800226413 | H87: 0.8641 | I87: 0.4277 | J87: 0.7508 | K87: 1.1573 | Q87: -0.5556560406 | R87: -0.9592414554 | S87: -3.224624512 | T87: 1.282990098
A88: =A87+Sheet2!M$10 -> 1.07 | B88: 1.484093828 | C88: -0.8780271816 | D88: -0.4730816245 | E88: 0.7184406629 | F88: 1.298605985 | G88: 0.03681925662 | H88: 0.8672 | I88: 0.4198 | J88: 0.7588 | K88: 1.1531 | Q88: -0.5828093955 | R88: -0.9729705436 | S88: -3.210895424 | T88: 1.252076942
A89: =A88+Sheet2!M$10 -> 1.08 | B89: 1.473087819 | C89: -0.8839572267 | D89: -0.4620014275 | E89: 0.6968999034 | F89: 1.297812871 | G89: 0.05566232314 | H89: 0.8704 | I89: 0.4118 | J89: 0.7669 | K89: 1.1489 | Q89: -0.6099627504 | R89: -0.9875375939 | S89: -3.196328373 | T89: 1.219689177
A90: =A89+Sheet2!M$10 -> 1.09 | B90: 1.462007477 | C90: -0.8897483823 | D90: -0.4508486397 | E90: 0.6754583855 | F90: 1.296619386 | G90: 0.07454487657 | H90: 0.8737 | I90: 0.4037 | J90: 0.7749 | K90: 1.1446 | Q90: -0.6371161052 | R90: -1.002976234 | S90: -3.180889733 | T90: 1.185826802
A91: =A90+Sheet2!M$10 -> 1.10 | B91: 1.450854543 | C91: -0.8953997385 | D91: -0.4396250135 | E91: 0.654124362 | F91: 1.295029044 | G91: 0.09348044207 | H91: 0.8770 | I91: 0.3954 | J91: 0.7828 | K91: 1.1402 | Q91: -0.6642694601 | R91: -1.0193241 | S91: -3.164541868 | T91: 1.150489818
A92: =A91+Sheet2!M$10 -> 1.12 | B92: 1.43963077 | C92: -0.9009104073 | D92: -0.4283323123 | E92: 0.6329059837 | F92: 1.29304554 | G92: 0.1124826961 | H92: 0.8804 | I92: 0.3871 | J92: 0.7908 | K92: 1.1358 | Q92: -0.691422815 | R92: -1.036623444 | S92: -3.147242523 | T92: 1.113678225
A93: =A92+Sheet2!M$10 -> 1.13 | B93: 1.428337921 | C93: -0.9062795229 | D93: -0.4169723106 | E93: 0.6118112953 | F93: 1.290672753 | G93: 0.1315655064 | H93: 0.8839 | I93: 0.3786 | J93: 0.7987 | K93: 1.1314 | Q93: -0.7185761699 | R93: -1.054921884 | S93: -3.128944084 | T93: 1.075392022
A94: =A93+Sheet2!M$10 -> 1.14 | B94: 1.41697777 | C94: -0.9115062417 | D94: -0.4055467931 | E94: 0.5908482313 | F94: 1.287914737 | G94: 0.1507429729 | H94: 0.8874 | I94: 0.3700 | J94: 0.8066 | K94: 1.1269 | Q94: -0.7457295247 | R94: -1.074273311 | S94: -3.109592656 | T94: 1.03563121
A95: =A94+Sheet2!M$10 -> 1.15 | B95: 1.405552103 | C95: -0.9165897424 | D95: -0.3940575552 | E95: 0.5700246118 | F95: 1.284775722 | G95: 0.1700294705 | H95: 0.8910 | I95: 0.3613 | J95: 0.8144 | K95: 1.1224 | Q95: -0.7728828796 | R95: -1.094739027 | S95: -3.089126941 | T95: 0.9943957882
A96: =A95+Sheet2!M$10 -> 1.17 | B96: 1.394062715 | C96: -0.9215292264 | D96: -0.382506402 | E96: 0.5493481382 | F96: 1.281260113 | G96: 0.1894396934 | H96: 0.8946 | I96: 0.3525 | J96: 0.8222 | K96: 1.1178 | Q96: -0.8000362345 | R96: -1.116389157 | S96: -3.06747681 | T96: 0.9516857573
A97: =A96+Sheet2!M$10 -> 1.18 | B97: 1.38251141 | C97: -0.9263239174 | D97: -0.3708951484 | E97: 0.5288263895 | F97: 1.277372479 | G97: 0.2089887008 | H97: 0.8983 | I97: 0.3436 | J97: 0.8300 | K97: 1.1132 | Q97: -0.8271895893 | R97: -1.139304453 | S97: -3.044561514 | T97: 0.9075011171
A98: =A97+Sheet2!M$10 -> 1.19 | B98: 1.370900005 | C98: -0.9309730622 | D98: -0.3592256189 | E98: 0.5084668184 | F98: 1.273117559 | G98: 0.2286919662 | H98: 0.9021 | I98: 0.3346 | J98: 0.8378 | K98: 1.1085 | Q98: -0.8543429442 | R98: -1.163578597 | S98: -3.02028737 | T98: 0.8618418674
A99: =A98+Sheet2!M$10 -> 1.20 | B99: 1.359230323 | C99: -0.9354759302 | D99: -0.347499647 | E99: 0.4882767472 | F99: 1.268500251 | G99: 0.2485654283 | H99: 0.9060 | I99: 0.3255 | J99: 0.8455 | K99: 1.1038 | Q99: -0.8814962991 | R99: -1.189321213 | S99: -2.994544754 | T99: 0.8147080085
A100: =A99+Sheet2!M$10 -> 1.22 | B100: 1.347504197 | C100: -0.939831814 | D100: -0.3357190751 | E100: 0.4682633641 | F100: 1.263525616 | G100: 0.2686255452 | H100: 0.9099 | I100: 0.3162 | J100: 0.8532 | K100: 1.0990 | Q100: -0.9086496539 | R100: -1.21666186 | S100: -2.967204107 | T100: 0.7660995401
A101: =A100+Sheet2!M$10 -> 1.23 | B101: 1.335723471 | C101: -0.9440400292 | D101: -0.3238857543 | E101: 0.4484337199 | F101: 1.258198867 | G101: 0.2888893525 | H101: 0.9139 | I101: 0.3068 | J101: 0.8609 | K101: 1.0942 | Q101: -0.9358030088 | R101: -1.245755424 | S101: -2.938110543 | T101: 0.7160164625
A102: =A101+Sheet2!M$10 -> 1.24 | B102: 1.323889995 | C102: -0.9480999145 | D102: -0.3120015437 | E102: 0.4287947241 | F102: 1.252525371 | G102: 0.3093745247 | H102: 0.9180 | I102: 0.2973 | J102: 0.8685 | K102: 1.0894 | Q102: -0.9629563637 | R102: -1.276789576 | S102: -2.907076392 | T102: 0.6644587754
A103: =A102+Sheet2!M$10 -> 1.25 | B103: 1.312005629 | C103: =(B104-B103)/dQ -> -0.952010832 | D103: -0.3000683106 | E103: 0.4093531415 | F103: 1.24651064 | G103: 0.3300994413 | H103: 0.9221 | I103: 0.2877 | J103: 0.8761 | K103: 1.0845 | Q103: -0.9901097185 | R103: -1.30999534 | S103: -2.873870628 | T103: 0.611426479
A104: =A103+Sheet2!M$10 -> 1.27 | B104: 1.30007224 | C104: -0.9557721673 | D104: -0.2880879302 | E104: 0.3901155887 | F104: 1.240160335 | G104: 0.3510832582 | H104: 0.9263 | I104: 0.2780 | J104: 0.8836 | K104: 1.0795 | Q104: -1.017263073 | R104: -1.345662541 | S104: -2.838203426 | T104: 0.5569195732
A105: =A104+Sheet2!M$10 -> 1.28 | B105: 1.288091702 | C105: -0.9593833294 | D105: -0.2760622846 | E105: 0.3710885313 | F105: 1.233480253 | G105: 0.3723459836 | H105: 0.9306 | I105: 0.2681 | J105: 0.8911 | K105: 1.0746 | Q105: -1.044416428 | R105: -1.384163206 | S105: -2.799702761 | T105: 0.5009380581
A106: =A105+Sheet2!M$10 -> 1.29 | B106: 1.276065899 | C106: -0.9628437509 | D106: -0.2639932635 | E106: 0.3522782801 | F106: 1.226476332 | G106: 0.3939085617 | H106: 0.9350 | I106: 0.2581 | J106: 0.8986 | K106: 1.0696 | Q106: -1.071569783 | R106: -1.425988591 | S106: -2.757877376 | T106: 0.4434819336
A107: =A106+Sheet2!M$10 -> 1.30 | B107: 1.26399672 | C107: -0.966152888 | D107: -0.2518827631 | E107: 0.3336909884 | F107: 1.219154639 | G107: 0.4157929617 | H107: 0.9394 | I107: 0.2480 | J107: 0.9061 | K107: 1.0645 | Q107: -1.098723138 | R107: -1.47181106 | S107: -2.712054907 | T107: 0.3845511997
A108: =A107+Sheet2!M$10 -> 1.32 | B108: 1.251886061 | C108: -0.9693102208 | D108: -0.2397326863 | E108: 0.3153326491 | F108: 1.21152137 | G108: 0.4380222762 | H108: 0.9439 | I108: 0.2378 | J108: 0.9135 | K108: 1.0594 | Q108: -1.125876493 | R108: -1.522594897 | S108: -2.66127107 | T108: 0.3241458565
A109: =A108+Sheet2!M$10 -> 1.33 | B109: 1.239735825 | C109: -0.9723152533 | D109: -0.2275449421 | E109: 0.2972090913 | F109: 1.203582848 | G109: 0.4606208275 | H109: 0.9486 | I109: 0.2274 | J109: 0.9209 | K109: 1.0542 | Q109: -1.153029848 | R109: =IF(T109>=0,b0+SQRT(r0^2-(Q109-a0)^2),b0+SQRT(-T109)) -> -1.579813951 | S109: =2*b0-R109 -> -2.604052017 | T109: =r0^2-(Q109-a0)^2 -> 0.2622659039
A110: =A109+Sheet2!M$10 -> 1.34 | B110: 1.227547922 | C110: -0.9751675132 | D110: -0.2153214455 | E110: 0.2793259781 | F110: 1.195345514 | G110: 0.4836142842 | H110: 0.9532 | I110: 0.2169 | J110: 0.9282 | K110: 1.0490 | Q110: -1.180183203 | R110: -1.645938206 | S110: -2.537927762 | T110: 0.198911342
A111: =A110+Sheet2!M$10 -> 1.35 | B111: 1.215324265 | C111: -0.9778665525 | D111: -0.2030641171 | E111: 0.2616888039 | F111: 1.186815925 | G111: 0.5070297887 | H111: 0.9580 | I111: 0.2063 | J111: 0.9356 | K111: 1.0438 | Q111: -1.207336557 | R111: -1.72576066 | S111: -2.458105307 | T111: 0.1340821707
A112: =A111+Sheet2!M$10 -> 1.37 | B112: 1.203066776 | C112: -0.980411947 | D112: -0.1907748827 | E112: 0.2443028915 | F112: 1.178000749 | G112: 0.5308960979 | H112: 0.9629 | I112: 0.1955 | J112: 0.9428 | K112: 1.0385 | Q112: -1.234489912 | R112: -1.831590152 | S112: -2.352275815 | T112: 0.06777839003
A113: =A112+Sheet2!M$10 -> 1.38 | B113: 1.190777381 | C113: -0.9828032969 | D113: -0.1784556734 | E113: 0.2271733897 | F113: 1.168906763 | G113: 0.5552437371 | H113: 0.9678 | I113: 0.1846 | J113: 0.9501 | K113: 1.0332 | Q113: -1.261643267 | R113: -2.091932937 | S113: -2.091933031 | T113: -2.220446049e-15
A114: =A113+Sheet2!M$10 -> 1.39 | B114: 1.17845801 | C114: -0.9850402263 | D114: -0.1661084246 | E114: 0.2103052714 | F114: 1.159540846 | G114: 0.5801051711 | H114: 0.9729 | I114: 0.1736 | J114: 0.9573 | K114: 1.0279 | Q114: =x0 -> 1.45369222 | R114: =IF(T112>=0,b0+SQRT(r0^2-(Q112-a0)^2),b0+SQRT(-T112)) -> -1.831590152 | S114: -2.352275815 | T114: -0.5214773357
A115: =A114+Sheet2!M$10 -> 1.40 | B115: 1.1661106 | C115: -0.9871223838 | D115: -0.1537350765 | E115: 0.1937033309 | F115: 1.149909975 | G115: 0.6055149921 | H115: 0.9780 | I115: 0.1625 | J115: 0.9644 | K115: 1.0225 | Q115: =Q114-drr -> 1.455612709 | R115: -2.091932937 | S115: -2.091933031 | T115: -0.5270646254
A116: =A115+Sheet2!M$10 -> 1.42 | B116: 1.153737089 | C116: -0.9890494422 | D116: -0.1413375732 | E116: 0.1773721822 | F116: 1.140021219 | G116: 0.6315101295 | H116: 0.9833 | I116: 0.1512 | J116: 0.9716 | K116: 1.0170 | Q116: 1.457533199 | R116: -1.369799107 | S116: -2.81406686 | T116: -0.5326592916
A117: =A116+Sheet2!M$10 -> 1.43 | B117: 1.141339424 | C117: -0.9908210988 | D117: -0.1289178626 | E117: 0.1613162566 | F117: 1.12988174 | G117: 0.6581300818 | H117: 0.9886 | I117: 0.1397 | J117: 0.9787 | K117: 1.0115 | Q117: 1.459453688 | R117: -1.365940817 | S117: -2.81792515 | T117: -0.5382613343
A118: =A117+Sheet2!M$10 -> 1.44 | B118: 1.128919551 | C118: -0.9924370752 | D118: -0.116477896 | E118: 0.1455398011 | F118: 1.11949878 | G118: 0.6854171758 | H118: 0.9940 | I118: 0.1281 | J118: 0.9857 | K118: 1.0060 | Q118: 1.461374178 | R118: -1.362097871 | S118: -2.821768096 | T118: -0.5438707537
A119: =A118+Sheet2!M$10 -> 1.45 | B119: 1.116479421 | C119: -0.9938971175 | D119: -0.1040196282 | E119: 0.1300468767 | F119: 1.108879663 | G119: 0.7134168552 | H119: 0.9995 | I119: 0.1164 | J119: 0.9927 | K119: 1.0005 | Q119: 1.463294667 | R119: -1.358270027 | S119: -2.825595941 | T119: -0.5494875495
A120: =A119+Sheet2!M$10 -> 1.47 | B120: 1.10402099 | C120: -0.9952009963 | D120: -0.0915450166 | E120: 0.1148413566 | F120: 1.098031789 | G120: 0.7421780046 | H120: 1.0052 | I120: 0.1046 | J120: 0.9997 | K120: 0.9949 | Q120: 1.465215157 | R120: -1.354457049 | S120: -2.829408918 | T120: -0.555111722
A121: =A120+Sheet2!M$10 -> 1.48 | B121: 1.091546215 | C121: -0.9963485067 | D121: -0.0790560212 | E121: 0.09992692481 | F121: 1.086962626 | G121: 0.7717533124 | H121: 1.0109 | I121: 0.0925 | J121: 1.0067 | K121: 0.9892 | Q121: 1.467135646 | R121: -1.350658709 | S121: -2.833207258 | T121: -0.560743271
A122: =A121+Sheet2!M$10 -> 1.49 | B122: 1.079057056 | C122: -0.9973394684 | D122: -0.06655460433 | E122: 0.08530707451 | F122: 1.075679708 | G122: 0.8021996785 | H122: 1.0167 | I122: 0.0804 | J122: 1.0136 | K122: 0.9835 | Q122: 1.469056136 | R122: -1.346874783 | S122: -2.836991184 | T122: -0.5663821965
A123: =A122+Sheet2!M$10 -> 1.50 | B123: 1.066555476 | C123: =(B124-B123)/dQ -> -0.9981737257 | D123: -0.05404273024 | E123: 0.07098510715 | F123: 1.06419063 | G123: 0.8335786757 | H123: 1.0227 | I123: 0.0681 | J123: 1.0204 | K123: 0.9778 | Q123: 1.470976625 | R123: -1.343105052 | S123: -2.840760915 | T123: -0.5720284987
A124: =A123+Sheet2!M$10 -> 1.52 | B124: 1.054043438 | C124: -0.9988511475 | D124: -0.04152236483 | E124: 0.05696413105 | F124: 1.052503044 | G124: 0.8659570694 | H124: 1.0288 | I124: 0.0556 | J124: 1.0272 | K124: 0.9721 | Q124: 1.472897115 | R124: -1.339349303 | S124: -2.844516664 | T124: -0.5776821773
A125: =A124+Sheet2!M$10 -> 1.53 | B125: 1.041522909 | C125: -0.9993716275 | D125: -0.02899547532 | E125: 0.04324706045 | F125: 1.040624649 | G125: 0.899407408 | H125: 1.0349 | I125: 0.0430 | J125: 1.0340 | K125: 0.9663 | Q125: 1.474817604 | R125: -1.335607327 | S125: -2.84825864 | T125: -0.5833432326
A126: =A125+Sheet2!M$10 -> 1.54 | B126: 1.028995855 | C126: -0.9997350837 | D126: -0.01646402997 | E126: 0.02983661459 | F126: 1.028563195 | G126: 0.9340086943 | H126: 1.0412 | I126: 0.0302 | J126: 1.0408 | K126: 0.9604 | Q126: 1.476738094 | R126: -1.331878922 | S126: -2.851987046 | T126: -0.5890116644
A127: =A126+Sheet2!M$10 -> 1.55 | B127: 1.016464246 | C127: -0.9999414592 | D127: -0.003929997755 | E127: 0.01673531693 | F127: 1.016326469 | G127: 0.9698471504 | H127: 1.0476 | I127: 0.0172 | J127: 1.0475 | K127: 0.9545 | Q127: 1.478658583 | R127: -1.328163887 | S127: -2.85570208 | T127: -0.5946874727
A128: =A127+Sheet2!M$10 -> 1.57 | B128: 1.003930049 | C128: -0.9999907214 | D128: 0.008604651954 | E128: 0.0039454945 | F128: 1.003922296 | G128: 1.007017093 | H128: 1.0542 | I128: 0.0041 | J128: 1.0542 | K128: 0.9486 | Q128: 1.480579073 | R128: -1.32446203 | S128: -2.859403937 | T128: -0.6003706577
A129: =A128+Sheet2!M$10 -> 1.58 | B129: 0.9913952354 | C129: -0.9998828627 | D129: 0.02113794968 | E129: -0.008530722647 | F129: 0.9913585323 | G129: 1.045621937 | H129: 1.0608 | I129: -0.0091 | J129: 1.0608 | K129: 0.9427 | Q129: 1.482499563 | R129: -1.320773161 | S129: -2.863092807 | T129: -0.6060612191
A130: =A129+Sheet2!M$10 -> 1.59 | B130: 0.9788617735 | C130: -0.9996179 | D130: 0.03366792616 | E130: -0.02069140184 | F130: 0.9786430593 | G130: 1.085775353 | H130: 1.0676 | I130: -0.0226 | J130: 1.0674 | K130: 0.9367 | Q130: 1.484420052 | R130: -1.317097093 | S130: -2.866768874 | T130: -0.6117591572
A131: =A130+Sheet2!M$10 -> 1.60 | B131: =1+COS(1*Q) -> 0.966331633 | C131: -0.9991958749 | D131: 0.04619261265 | E131: -0.03253480806 | F131: 0.9657837808 | G131: 1.1276026 | H131: =(B131^2+2*C131^2-B131*D131)/(B131^2+C131^2)^1.5 -> 1.0745 | I131: -0.0362 | J131: 1.0739 | K131: 0.9307 | Q131: 1.486340542 | R131: -1.313433646 | S131: -2.870432322 | T131: -0.6174644718
A132: =A131+Sheet2!M$10 -> 1.62 | B132: 0.9538067825 | C132: -0.9986168537 | D132: 0.05871004124 | E132: =B132*COS(A132) -> -0.04405940414 | F132: =B132*SIN(A132) -> 0.9527886163 | G132: =(F133-F132)/(E133-E132) -> 1.17124208 | H132: 1.0816 | I132: =H132*COS(A132) -> -0.0500 | J132: =H132*SIN(A132) -> 1.0804 | K132: =1/H132 -> 0.9246 | Q132: 1.488261031 | R132: -1.309782642 | S132: -2.874083325 | T132: -0.6231771629
A133: =A132+Sheet2!M$10 -> 1.63 | B133: 0.94128919 | C133: -0.9978809275 | D133: 0.07121824518 | E133: -0.05526385077 | F133: 0.9396654969 | G133: 1.21684713 | H133: 1.0888 | I133: -0.0639 | J133: 1.0869 | K133: 0.9185 | Q133: 1.490181521 | R133: -1.306143908 | S133: -2.87772206 | T133: -0.6288972306
A134: =A133+Sheet2!M$10 -> 1.64 | B134: 0.9287808223 | C134: -0.9969882117 | D134: 0.08371525913 | E134: -0.06614700642 | F134: 0.9264223602 | G134: 1.264588137 | H134: 1.0961 | I134: -0.0781 | J134: 1.0933 | K134: 0.9123 | Q134: 1.49210201 | R134: -1.302517274 | S134: -2.881348693 | T134: -0.6346246749
A135: =A134+Sheet2!M$10 -> 1.65 | B135: 0.9162836447 | C135: -0.9959388468 | D135: 0.09619911954 | E135: -0.07670792714 | F135: 0.9130671451 | G135: 1.314655002 | H135: 1.1036 | I135: -0.0924 | J135: 1.0997 | K135: 0.9062 | Q135: 1.4940225 | R135: -1.298902574 | S135: -2.884963393 | T135: -0.6403594958
A136: =A135+Sheet2!M$10 -> 1.67 | B136: 0.9037996209 | C136: -0.9947329976 | D136: 0.1086678649 | E136: -0.0869458662 | F136: 0.8996077873 | G136: 1.367260056 | H136: 1.1112 | I136: -0.1069 | J136: 1.1060 | K136: 0.9000 | Q136: 1.495942989 | R136: -1.295299646 | S136: -2.888566321 | T136: -0.6461016932
A137: =A136+Sheet2!M$10 -> 1.68 | B137: 0.8913307122 | C137: -0.9933708535 | D137: 0.1211195361 | E137: -0.09686027367 | F137: 0.886052214 | G137: 1.422641503 | H137: 1.1189 | I137: -0.1216 | J137: 1.1123 | K137: 0.8937 | Q137: 1.497863479 | R137: -1.29170833 | S137: -2.892157637 | T137: -0.6518512671
A138: =A137+Sheet2!M$10 -> 1.69 | B138: 0.878878878 | C138: -0.9918526286 | D138: 0.1335521767 | E138: -0.1064507958 | F138: 0.8724083391 | G138: 1.481067524 | H138: 1.1269 | I138: -0.1365 | J138: 1.1186 | K138: 0.8874 | Q138: 1.499783968 | R138: -1.288128472 | S138: -2.895737495 | T138: -0.6576082176
A139: =A138+Sheet2!M$10 -> 1.70 | B139: 0.8664460746 | C139: -0.9901785614 | D139: 0.1459638333 | E139: -0.1157172744 | F139: 0.8586840586 | G139: 1.542841182 | H139: 1.1349 | I139: -0.1516 | J139: 1.1248 | K139: 0.8811 | Q139: 1.501704458 | R139: -1.284559918 | S139: -2.899306049 | T139: -0.6633725447
A140: =A139+Sheet2!M$10 -> 1.72 | B140: 0.8540342555 | C140: -0.9883489149 | D140: 0.1583525557 | E140: -0.124659746 | F140: 0.8448872453 | G140: 1.608306325 | H140: 1.1432 | I140: -0.1669 | J140: 1.1309 | K140: 0.8747 | Q140: 1.503624947 | R140: -1.28100252 | S140: -2.902863448 | T140: -0.6691442484
A141: =A140+Sheet2!M$10 -> 1.73 | B141: 0.8416453709 | C141: -0.9863639767 | D141: 0.1707163973 | E141: -0.1332784406 | F141: 0.8310257442 | G141: 1.67785472 | H141: 1.1516 | I141: -0.1824 | J141: 1.1371 | K141: 0.8684 | Q141: 1.505545437 | R141: -1.27745613 | S141: -2.906409837 | T141: =r0^2-(Q141-a0)^2 -> -0.6749233286
A142: =A141+Sheet2!M$10 -> 1.74 | B142: 0.8292813673 | C142: -0.9842240586 | D142: 0.1830534156 | E142: -0.1415737811 | F142: 0.8171073679 | G142: 1.751934751 | H142: 1.1602 | I142: -0.1981 | J142: 1.1432 | K142: 0.8619 | Q142: 1.507465926 | R142: -1.273920607 | S142: -2.90994536 | T142: -0.6807097853
A143: =A142+Sheet2!M$10 -> 1.75 | B143: 0.8169441875 | C143: =(B144-B143)/dQ -> -0.9819294968 | D143: 0.1953616721 | E143: -0.149546382 | F143: 0.8031398914 | G143: 1.831062064 | H143: 1.1689 | I143: -0.2140 | J143: 1.1492 | K143: 0.8555 | Q143: 1.509386416 | R143: -1.270395809 | S143: -2.913470158 | T143: -0.6865036186
A144: =A143+Sheet2!M$10 -> 1.77 | B144: 0.8046357699 | C144: -0.9794806519 | D144: 0.2076392329 | E144: -0.1571970477 | F144: 0.7891310476 | G144: 1.915832724 | H144: 1.1779 | I144: -0.2301 | J144: 1.1552 | K144: 0.8490 | Q144: 1.511306905 | R144: -1.2668816 | S144: -2.916984367 | T144: -0.6923048285
A145: =A144+Sheet2!M$10 -> 1.78 | B145: 0.7923580483 | C145: -0.9768779086 | D145: 0.2198841689 | E145: -0.1645267716 | F145: 0.7750885228 | G145: 2.00693957 | H145: 1.1870 | I145: -0.2465 | J145: 1.1611 | K145: 0.8425 | Q145: 1.513227395 | R145: -1.263377844 | S145: -2.920488123 | T145: -0.698113415
A146: =A145+Sheet2!M$10 -> 1.79 | B146: 0.780112952 | C146: -0.9741216759 | D146: 0.2320945562 | E146: -0.1715367341 | F146: 0.7610199516 | G146: 2.105192737 | H146: 1.1963 | I146: -0.2631 | J146: 1.1670 | K146: 0.8359 | Q146: 1.515147884 | R146: =IF(T144>=0,b0+SQRT(r0^2-(Q144-a0)^2),b0+SQRT(-T144)) -> -1.25988441 | S146: -2.923981557 | T146: -0.703929378
A147: =A146+Sheet2!M$10 -> 1.81 | B147: 0.7679024048 | C147: -0.9712123869 | D147: 0.2442684762 | E147: -0.1782283015 | F147: 0.7469329126 | G147: 2.211545631 | H147: 1.2058 | I147: -0.2799 | J147: 1.1729 | K147: 0.8293 | Q147: =Q146-drr -> 1.517068374 | R147: -1.256401168 | S147: -2.927464799 | T147: -0.7097527175
A148: =A147+Sheet2!M$10 -> 1.82 | B148: 0.7557283254 | C148: -0.9681504986 | D148: 0.2564040162 | E148: -0.1846030236 | F148: 0.7328349238 | G148: 2.327128113 | H148: 1.2156 | I148: -0.2969 | J148: 1.1787 | K148: 0.8227 | Q148: 1.518988863 | R148: -1.252927991 | S148: -2.930937976 | T148: -0.7155834336
A149: =A148+Sheet2!M$10 -> 1.83 | B149: 0.7435926265 | C149: -0.9649364921 | D149: 0.2684992693 | E149: -0.1906626323 | F149: 0.718733438 | G149: 2.45328937 | H149: 1.2255 | I149: -0.3142 | J149: 1.1845 | K149: 0.8160 | Q149: 1.520909353 | R149: -1.249464754 | S149: -2.934401213 | T149: -0.7214215263
A150: =A149+Sheet2!M$10 -> 1.84 | B150: 0.731497215 | C150: -0.9615708726 | D150: 0.2805523352 | E150: -0.1964090394 | F150: 0.7046358384 | G150: 2.591653908 | H150: 1.2356 | I150: -0.3318 | J150: 1.1902 | K150: 0.8093 | Q150: 1.522829843 | R150: -1.246011336 | S150: -2.937854631 | T150: -0.7272669956
A151: =A150+Sheet2!M$10 -> 1.86 | B151: 0.7194439913 | C151: -0.9580541686 | D151: 0.29256132 | E151: -0.2018443347 | F151: 0.6905494343 | G151: 2.744195626 | H151: 1.2460 | I151: -0.3496 | J151: 1.1959 | K151: 0.8026 | Q151: 1.524750332 | R151: -1.242567617 | S151: -2.94129835 | T151: -0.7331198414
A152: =A151+Sheet2!M$10 -> 1.87 | B152: 0.7074348492 | C152: -0.9543869329 | D152: 0.3045243369 | E152: -0.2069707833 | F152: 0.6764814563 | G152: 2.913337159 | H152: 1.2565 | I152: -0.3676 | J152: 1.2016 | K152: 0.7958 | Q152: 1.526670822 | R152: -1.239133479 | S152: -2.944732489 | T152: -0.7389800637
A153: =A152+Sheet2!M$10 -> 1.88 | B153: 0.6954716757 | C153: -0.9505697416 | D153: 0.3164395062 | E153: -0.211790824 | F153: 0.6624390527 | G153: 3.102085163 | H153: 1.2673 | I153: -0.3859 | J153: 1.2071 | K153: 0.7891 | Q153: 1.528591311 | R153: -1.235708807 | S153: -2.948157161 | T153: -0.7448476626
A154: =A153+Sheet2!M$10 -> 1.89 | B154: 0.6835563504 | C154: -0.9466031945 | D154: 0.3283049557 | E154: -0.2163070662 | F154: 0.6484292847 | G154: 3.314217677 | H154: 1.2784 | I154: -0.4045 | J154: 1.2127 | K154: 0.7822 | Q154: 1.530511801 | R154: -1.232293487 | S154: -2.95157248 | T154: -0.7507226381
A155: =A154+Sheet2!M$10 -> 1.91 | B155: 0.6716907455 | C155: -0.9424879148 | D155: 0.3401188212 | E155: -0.2205222879 | F155: 0.6344591225 | G155: 3.554548565 | H155: 1.2897 | I155: -0.4234 | J155: 1.2182 | K155: 0.7754 | Q155: 1.53243229 | R155: -1.22888741 | S155: -2.954978558 | T155: -0.7566049902
A156: =A155+Sheet2!M$10 -> 1.92 | B156: 0.6598767253 | C156: -0.9382245492 | D156: 0.3518792464 | E156: -0.2244394327 | F156: 0.6205354411 | G156: 3.829308736 | H156: 1.3012 | I156: -0.4426 | J156: 1.2237 | K156: 0.7685 | Q156: 1.53435278 | R156: -1.225490465 | S156: -2.958375502 | T156: -0.7624947188
A157: =A156+Sheet2!M$10 -> 1.93 | B157: 0.6481161461 | C157: -0.9338137674 | D157: 0.3635843835 | E157: -0.2280616073 | F157: 0.6066650165 | G157: 4.146709116 | H157: 1.3130 | I157: -0.4620 | J157: 1.2291 | K157: 0.7616 | Q157: 1.536273269 | R157: -1.222102546 | S157: -2.961763421 | T157: -0.7683918239
A158: =A157+Sheet2!M$10 -> 1.94 | B158: 0.6364108558 | C158: -0.9292562626 | D158: 0.3752323933 | E158: -0.2313920784 | F158: 0.5928545213 | G158: 4.517795166 | H158: 1.3251 | I158: -0.4818 | J158: 1.2344 | K158: 0.7547 | Q158: 1.538193759 | R158: -1.218723548 | S158: -2.965142419 | T158: -0.7742963056
A159: =A158+Sheet2!M$10 -> 1.96 | B159: 0.6247626935 | C159: -0.9245527507 | D159: 0.3868214457 | E159: -0.2344342703 | F159: 0.5791105214 | G159: 4.957785746 | H159: 1.3375 | I159: -0.5019 | J159: 1.2397 | K159: 0.7477 | Q159: 1.540114248 | R159: -1.215353367 | S159: -2.9685126 | T159: -0.7802081639
A160: =A159+Sheet2!M$10 -> 1.97 | B160: 0.6131734893 | C160: -0.9197039709 | D160: 0.3983497198 | E160: -0.2371917613 | F160: 0.5654394719 | G160: 5.488250037 | H160: 1.3501 | I160: -0.5223 | J160: 1.2450 | K160: 0.7407 | Q160: 1.542034738 | R160: -1.211991903 | S160: -2.971874064 | T160: -0.7861273988
A161: =A160+Sheet2!M$10 -> 1.98 | B161: 0.6016450643 | C161: -0.914710685 | D161: 0.4098154042 | E161: -0.2396682809 | F161: 0.5518477132 | G161: 6.140805773 | H161: 1.3631 | I161: -0.5430 | J161: 1.2502 | K161: 0.7336 | Q161: 1.543955227 | R161: -1.208639055 | S161: -2.975226912 | T161: -0.7920540102
A162: =A161+Sheet2!M$10 -> 1.99 | B162: 0.5901792298 | C162: -0.9095736776 | D162: 0.4212166974 | E162: -0.2418677065 | F162: 0.5383414677 | G162: 6.963742679 | H162: 1.3763 | I162: -0.5640 | J162: 1.2554 | K162: 0.7266 | Q162: 1.545875717 | R162: -1.205294727 | S162: -2.978571241 | T162: -0.7979879981
A163: =A162+Sheet2!M$10 -> 2.01 | B163: 0.5787777873 | C163: =(B164-B163)/dQ -> -0.9042937557 | D163: 0.432551808 | E163: -0.2437940602 | F163: 0.5249268361 | G163: 8.034680377 | H163: 1.3899 | I163: -0.5854 | J163: 1.2605 | K163: 0.7195 | Q163: 1.547796206 | R163: -1.201958821 | S163: -2.981907146 | T163: -0.8039293626
A164: =A163+Sheet2!M$10 -> 2.02 | B164: 0.5674425282 | C164: -0.898871749 | D164: 0.4438189551 | E164: -0.2454515054 | F164: 0.511609794 | G164: 9.486823258 | H164: 1.4037 | I164: -0.6072 | J164: 1.2656 | K164: 0.7124 | Q164: 1.549716696 | R164: -1.198631244 | S164: -2.985234723 | T164: -0.8098781037
A165: =A164+Sheet2!M$10 -> 2.03 | B165: 0.5561752336 | C165: -0.8933085094 | D165: 0.4550163682 | E165: -0.2468443431 | F165: 0.4983961886 | G165: 11.56956833 | H165: 1.4180 | I165: -0.6293 | J165: 1.2706 | K165: 0.7052 | Q165: 1.551637185 | R165: -1.195311903 | S165: -2.988554065 | T165: -0.8158342214
A166: =A165+Sheet2!M$10 -> 2.04 | B166: 0.5449776739 | C166: -0.887604911 | D166: 0.4661422881 | E166: -0.2479770089 | F166: 0.485291735 | G166: 14.81053152 | H166: 1.4325 | I166: -0.6518 | J166: 1.2756 | K166: 0.6981 | Q166: 1.553557675 | R166: -1.192000706 | S166: -2.991865261 | T166: -0.8217977156
A167: =A166+Sheet2!M$10 -> 2.06 | B167: 0.5338516083 | C167: -0.88176185 | D167: 0.4771949666 | E167: -0.2488540686 | F167: 0.4723020138 | G167: 20.55356192 | H167: 1.4475 | I167: -0.6747 | J167: 1.2806 | K167: 0.6909 | Q167: 1.555478164 | R167: -1.188697565 | S167: -2.995168402 | T167: -0.8277685863
A168: =A167+Sheet2!M$10 -> 2.07 | B168: 0.5227987851 | C168: -0.8757802444 | D168: 0.488172667 | E168: -0.2494802154 | F168: 0.4594324671 | G168: 33.53261998 | H168: 1.4628 | I168: -0.6980 | J168: 1.2855 | K168: 0.6836 | Q168: 1.557398654 | R168: -1.185402391 | S168: -2.998463576 | T168: -0.8337468336
A169: =A168+Sheet2!M$10 -> 2.08 | B169: 0.511820941 | C169: -0.8696610341 | D169: 0.4990736646 | E169: -0.2498602654 | F169: 0.4466883963 | G169: 90.8169326 | H169: 1.4784 | I169: -0.7217 | J169: 1.2903 | K169: 0.6764 | Q169: 1.559319143 | R169: -1.182115097 | S169: -3.00175087 | T169: -0.8397324575
A170: =A169+Sheet2!M$10 -> 2.09 | B170: 0.5009198006 | C170: -0.8634051806 | D170: 0.5098962465 | E170: -0.249999154 | F170: 0.4340749586 | G170: -128.3435148 | H170: 1.4945 | I170: -0.7459 | J170: 1.2951 | K170: 0.6691 | Q170: 1.561239633 | R170: -1.178835599 | S170: -3.005030368 | T170: -0.845725458
A171: =A170+Sheet2!M$10 -> 2.11 | B171: 0.490097077 | C171: -0.8570136668 | D171: 0.5206387123 | E171: -0.2499019321 | F171: 0.4215971646 | G171: -37.59420129 | H171: 1.5110 | I171: -0.7705 | J171: 1.2998 | K171: 0.6618 | Q171: 1.563160123 | R171: -1.175563813 | S171: -3.008302155 | T171: -0.851725835
A172: =A171+Sheet2!M$10 -> 2.12 | B172: 0.4793544706 | C172: -0.8504874969 | D172: 0.531299374 | E172: -0.2495737621 | F172: 0.4092598755 | G172: -22.01337714 | H172: 1.5280 | I172: -0.7955 | J172: 1.3045 | K172: 0.6545 | Q172: 1.565080612 | R172: -1.172299656 | S172: -3.011566312 | T172: -0.8577335885
A173: =A172+Sheet2!M$10 -> 2.13 | B173: 0.4686936692 | C173: -0.8438276964 | D173: 0.5418765568 | E173: -0.2490199137 | F173: 0.3970678005 | G173: -15.55544121 | H173: 1.5453 | I173: -0.8210 | J173: 1.3092 | K173: 0.6471 | Q173: 1.567001102 | R173: -1.169043047 | S173: =2*b0-R173 -> -3.01482292 | T173: =r0^2-(Q173-a0)^2 -> -0.8637487186
A174: =A173+Sheet2!M$10 -> 2.14 | B174: 0.458116348 | C174: -0.8370353116 | D174: 0.5523685985 | E174: -0.2482457597 | F174: 0.3850254941 | G174: -12.02051725 | H174: 1.5632 | I174: -0.8471 | J174: 1.3138 | K174: 0.6397 | Q174: 1.568921591 | R174: -1.165793907 | S174: -3.01807206 | T174: -0.8697712253
A175: =A174+Sheet2!M$10 -> 2.16 | B175: 0.4476241688 | C175: -0.8301114098 | D175: 0.5627738508 | E175: -0.2472567723 | F175: 0.3731373542 | G175: -9.789023188 | H175: 1.5815 | I175: -0.8736 | J175: 1.3183 | K175: 0.6323 | Q175: 1.570842081 | R175: -1.162552158 | S175: -3.021313809 | T175: -0.8758011086
A176: =A175+Sheet2!M$10 -> 2.17 | B176: 0.4372187803 | C176: -0.8230570789 | D176: 0.5730906787 | E176: -0.2460585185 | F176: 0.3614076194 | G176: -8.251344259 | H176: 1.6003 | I176: -0.9006 | J176: 1.3228 | K176: 0.6249 | Q176: 1.57276257 | R176: -1.159317723 | S176: -3.024548245 | T176: -0.8818383684
A177: =A176+Sheet2!M$10 -> 2.18 | B177: 0.4269018173 | C177: -0.8158734273 | D177: 0.5833174612 | E177: -0.2446566557 | F177: 0.3498403671 | G177: -7.126747144 | H177: 1.6196 | I177: -0.9282 | J177: 1.3273 | K177: 0.6174 | Q177: 1.57468306 | R177: -1.156090524 | S177: -3.027775443 | T177: -0.8878830047
A178: =A177+Sheet2!M$10 -> 2.19 | B178: 0.4166749009 | C178: -0.8085615836 | D178: 0.5934525915 | E178: -0.2430569279 | F178: 0.3384395114 | G178: -6.267951996 | H178: 1.6395 | I178: -0.9564 | J178: 1.3317 | K178: 0.6099 | Q178: 1.576603549 | R178: =IF(T176>=0,b0+SQRT(r0^2-(Q176-a0)^2),b0+SQRT(-T176)) -> -1.152870489 | S178: -3.030995478 | T178: -0.8939350176
A179: =A178+Sheet2!M$10 -> 2.21 | B179: 0.406539638 | C179: -0.8011226969 | D179: 0.603494477 | E179: -0.2412651607 | F179: 0.327208801 | G179: -5.590255059 | H179: 1.6599 | I179: -0.9851 | J179: 1.3360 | K179: 0.6024 | Q179: =Q178-drr -> 1.578524039 | R179: -1.149657544 | S179: -3.034208424 | T179: -0.8999944071
A180: =A179+Sheet2!M$10 -> 2.22 | B180: 0.3964976209 | C180: -0.7935579358 | D180: 0.6134415401 | E180: -0.2392872575 | F180: 0.3161518176 | G180: -5.041485575 | H180: 1.6809 | I180: -1.0144 | J180: 1.3403 | K180: 0.5949 | Q180: 1.580444528 | R180: -1.146451615 | S180: -3.037414352 | T180: -0.9060611732
A181: =A180+Sheet2!M$10 -> 2.23 | B181: 0.3865504276 | C181: -0.7858684889 | D181: 0.6232922177 | E181: -0.2371291945 | F181: 0.3052719741 | G181: -4.587754912 | H181: 1.7025 | I181: -1.0444 | J181: 1.3446 | K181: 0.5874 | Q181: 1.582365018 | R181: -1.143252633 | S181: -3.040613334 | T181: -0.9121353158
A182: =A181+Sheet2!M$10 -> 2.24 | B182: 0.376699621 | C182: -0.7780555645 | D182: 0.6330449622 | E182: -0.2347970165 | F182: 0.2945725131 | G182: -4.206093283 | H182: 1.7248 | I182: -1.0751 | J182: 1.3488 | K182: 0.5798 | Q182: 1.584285507 | R182: -1.140060527 | S182: -3.04380544 | T182: -0.9182168349
A183: =A182+Sheet2!M$10 -> 2.26 | B183: 0.3669467489 | C183: =(B184-B183)/dQ -> -0.7701203901 | D183: 0.642698241 | E183: -0.2322968324 | F183: 0.2840565053 | G183: -3.880379913 | H183: 1.7477 | I183: -1.1064 | J183: 1.3529 | K183: 0.5722 | Q183: 1.586205997 | R183: -1.136875228 | S183: -3.046990739 | T183: -0.9243057306
A184: =A183+Sheet2!M$10 -> 2.27 | B184: 0.3572933436 | C184: -0.7620642126 | D184: 0.6522505376 | E184: -0.2296348102 | F184: 0.273726848 | G184: -3.598967287 | H184: 1.7713 | I184: -1.1384 | J184: 1.3570 | K184: 0.5646 | Q184: 1.588126486 | R184: -1.133696669 | S184: -3.050169298 | T184: -0.9304020029
A185: =A184+Sheet2!M$10 -> 2.28 | B185: 0.3477409219 | C185: -0.7538882976 | D185: 0.6617003511 | E185: -0.2268171731 | F185: 0.2635862643 | G185: -3.353230141 | H185: 1.7956 | I185: -1.1712 | J185: 1.3610 | K185: 0.5569 | Q185: 1.590046976 | R185: -1.130524782 | S185: -3.053341186 | T185: -0.9365056518
A186: =A185+Sheet2!M$10 -> 2.29 | B186: 0.3382909848 | C186: -0.74559393 | D186: 0.6710461965 | E186: -0.2238501944 | F186: 0.2536373018 | G186: -3.136644851 | H186: 1.8206 | I186: -1.2047 | J186: 1.3650 | K186: 0.5493 | Q186: 1.591967465 | R186: -1.127359501 | S186: -3.056506466 | T186: -0.9426166772
A187: =A186+Sheet2!M$10 -> 2.31 | B187: 0.3289450169 | C187: -0.7371824128 | D187: 0.6802866056 | E187: -0.2207401928 | F187: 0.2438823312 | G187: -2.944186009 | H187: 1.8465 | I187: -1.2391 | J187: 1.3690 | K187: 0.5416 | Q187: 1.593887955 | R187: -1.124200763 | S187: -3.059665205 | T187: -0.9487350791
A188: =A187+Sheet2!M$10 -> 2.32 | B188: 0.3197044869 | C188: -0.7286550677 | D188: 0.6894201263 | E188: -0.217493528 | F188: 0.2343235461 | G188: -2.771919611 | H188: 1.8731 | I188: -1.2743 | J188: 1.3729 | K188: 0.5339 | Q188: 1.595808444 | R188: -1.121048502 | S188: -3.062817466 | T188: -0.9548608576
A189: =A188+Sheet2!M$10 -> 2.33 | B189: 0.3105708465 | C189: -0.7200132346 | D189: 0.6984453238 | E189: -0.2141165958 | F189: 0.2249629616 | G189: -2.616721978 | H189: 1.9006 | I189: -1.3103 | J189: 1.3767 | K189: 0.5261 | Q189: 1.597728934 | R189: -1.117902656 | S189: -3.065963311 | T189: -0.9609940127
A190: =A189+Sheet2!M$10 -> 2.34 | B190: 0.3015455309 | C190: -0.7112582712 | D190: 0.7073607798 | E190: -0.2106158237 | F190: 0.2158024143 | G190: -2.476081277 | H190: 1.9290 | I190: -1.3473 | J190: 1.3805 | K190: 0.5184 | Q190: 1.599649424 | R190: -1.114763163 | S190: -3.069102804 | T190: -0.9671345444
A191: =A190+Sheet2!M$10 -> 2.36 | B191: 0.2926299582 | C191: -0.7023915533 | D191: 0.7161650935 | E191: -0.2069976658 | F191: 0.2068435612 | G191: -2.347954665 | H191: 1.9584 | I191: -1.3853 | J191: 1.3843 | K191: 0.5106 | Q191: 1.601569913 | R191: -1.111629963 | S191: -3.072236005 | T191: -0.9732824526
A192: =A191+Sheet2!M$10 -> 2.37 | B192: 0.2838255291 | C192: -0.6934144739 | D192: 0.7248568817 | E192: -0.2032685982 | F192: 0.1980878795 | G192: -2.230663662 | H192: 1.9887 | I192: -1.4242 | J192: 1.3879 | K192: 0.5028 | Q192: 1.603490403 | R192: -1.108502994 | S192: -3.075362973 | T192: -0.9794377373
A193: =A192+Sheet2!M$10 -> 2.38 | B193: 0.2751336272 | C193: -0.6843284435 | D193: 0.7334347786 | E193: -0.1994351144 | F193: 0.1895366665 | G193: -2.122816344 | H193: 2.0200 | I193: -1.4643 | J193: 1.3916 | K193: 0.4950 | Q193: 1.605410892 | R193: -1.105382198 | S193: -3.078483769 | T193: -0.9856003987
A194: =A193+Sheet2!M$10 -> 2.39 | B194: 0.2665556179 | C194: -0.6751348898 | D194: 0.7418974365 | E194: -0.1955037205 | F194: 0.1811910393 | G194: -2.02324865 | H194: 2.0525 | I194: -1.5054 | J194: 1.3952 | K194: 0.4872 | Q194: 1.607331382 | R194: -1.102267516 | S194: -3.081598451 | T194: -0.9917704365
A195: =A194+Sheet2!M$10 -> 2.41 | B195: =1+COS(1*Q) -> 0.2580928492 | C195: -0.6658352572 | D195: 0.7502435256 | E195: -0.1914809304 | F195: 0.1730519347 | G195: -1.930979551 | H195: =(B195^2+2*C195^2-B195*D195)/(B195^2+C195^2)^1.5 -> 2.0861 | I195: -1.5477 | J195: 1.3987 | K195: 0.4794 | Q195: 1.609251871 | R195: -1.099158891 | S195: -3.084707076 | T195: -0.997947851
A196: =A195+Sheet2!M$10 -> 2.42 | B196: 0.2497466508 | C196: -0.6564310071 | D196: 0.7584717347 | E196: =B196*COS(A196) -> -0.1873732612 | F196: =B196*SIN(A196) -> 0.1651201095 | G196: =(F197-F196)/(E197-E196) -> -1.845176399 | H196: 2.1208 | I196: =H196*COS(A196) -> -1.5912 | J196: =H196*SIN(A196) -> 1.4022 | K196: =1/H196 -> 0.4715 | Q196: 1.611172361 | R196: -1.096056266 | S196: -3.087809701 | T196: -1.004132642
A197: =A196+Sheet2!M$10 -> 2.43 | B197: 0.241518334 | C197: -0.6469236169 | D197: 0.7665807709 | E197: -0.1831872283 | F197: 0.1573961405 | G197: -1.765127861 | H197: 2.1569 | I197: -1.6359 | J197: 1.4056 | K197: 0.4636 | Q197: 1.61309285 | R197: -1.092959585 | S197: -3.090906382 | T197: -1.01032481
A198: =A197+Sheet2!M$10 -> 2.44 | B198: 0.2334091917 | C198: -0.6373145804 | D198: 0.77456936 | E198: -0.1789293409 | F198: 0.1498804247 | G198: -1.690222566 | H198: 2.1942 | I198: -1.6821 | J198: 1.4090 | K198: 0.4557 | Q198: 1.61501334 | R198: -1.089868793 | S198: -3.093997174 | T198: -1.016524354
A199: =A198+Sheet2!M$10 -> 2.46 | B199: 0.2254204979 | C199: -0.6276054076 | D199: 0.782436247 | E199: -0.174606097 | F199: 0.1425731804 | G199: -1.61993211 | H199: 2.2330 | I199: -1.7297 | J199: 1.4123 | K199: 0.4478 | Q199: 1.616933829 | R199: -1.086783836 | S199: -3.097082132 | T199: -1.022731274
A200: =A199+Sheet2!M$10 -> 2.47 | B200: 0.217553508 | C200: -0.6177976239 | D200: 0.7901801956 | E200: -0.1702239791 | F200: 0.1354744469 | G200: -1.553797412 | H200: 2.2733 | I200: -1.7787 | J200: 1.4156 | K200: 0.4399 | Q200: 1.618854319 | R200: -1.083704659 | S200: -3.100161308 | T200: -1.028945572
... 806 more rows

Sheet Defining Function
A1: Defining a Function in Excel
A3: Computers have very specific rules you must follow when defining a function. If you don't, the program will either not work at all or will work incorrectly.
A5: 1. The Variable used should be the one named in the instruction, usually x, though sometimes y, t, Q (for an angle theta),
A6: or even x and y (for a function of two variables).
A8: 2. Order of Operations: There five arithmetic operations, addition (+), subtraction (-), multiplication (*), division (/), and exponentiation or power (^). When computers see any of these operation symbols, they perform the indicated steps in a very particular order. First, the power is done. Second, products and quotients of adjacent terms is done. Third, and last, sums and differences of adjacent terms are done. So, in 10*x^3 + 5*x – 7, say with x = 2, the first pass only calculates 2^3 and ignores the multiplications and the sums and differences to calculate 2^3 = 8. The second pass looks at 10*8 + 5*2 – 7 and only does the multiplications, so it produces 80 + 10 - 7. The third pass looks at the +’s and –‘s to produce 80 + 10 – 7 = 83.
A10: 3. Parentheses If you need an operation involving more than two adjacent terms, as in Ö4^3 + 6^2, the computer would take the square root of 4 to produce 2^3 + 6^2; it would then cube the 2 and square the 6 to produce 8 + 36; and finally it would add the 8 and the 36 to get 44. If you actually wanted the square root of the entire expression, you would need to use parentheses, as in Ö(4^3 + 6^2) to tell the computer to do all the operations inside the parentheses before taking the square root. Therefore, it would calculate (4^3 + 6^2) = 64 + 36 = 100 and then take the square root of Ö100 = 10.
A12: 4. Built-In Functions Computer programs have built-in functions for most common algebraic functions. In Excel, the square root function is denoted by SQRT(…), so SQRT(100) = 10. Alternatively, you could enter it as 100^.5 or 100^(1/2); notice that parentheses are needed to have the ½ done first. The common trig functions are SIN (…), COS (…), and TAN (…), where the arguments are automatically interpreted as being in radians, not degrees. The logarithm to the base 10 is represented by LOG (…) and the logarithm with the base e, known as the natural logarithm, is LN (…). The corresponding exponential function with base e is EXP (x). If x is the variable, then each of these would be SQRT (x), SIN (x), COS (x), TAN (x), LOG (x) (for log with base 10 ), LN (x) (for log with base e ), and EXP (x).

Sheet Sheet3
